[Event "November 21 Late 2023"]
[Site "https://www.chess.com"]
[Date "2023.11.21"]
[Round "9"]
[White "Maect19"]
[Black "Melikhov, Evgeny V."]
[Result "1-0"]
[Board "93"]
[TimeControl "180+1"]
[BlackFideId "4122046"]
[WhiteElo "2336"]
[BlackElo "2165"]
[BlackTeam "GRE"]
[WhiteClock "0:00:24"]
[BlackClock "0:00:03"]

1. d4 {[%clk 0:03:00]}  Nf6 {[%clk 0:02:59]} 2. Nf3 {[%clk 0:02:58]}  d5 {[%clk 0:02:58]} 3. e3 {[%clk 0:02:56]}  c5 {[%clk 0:02:57]} 4. Bd3 {[%clk 0:02:56]}  cxd4 {[%clk 0:02:56]} 5. exd4 {[%clk 0:02:56]}  Nc6 {[%clk 0:02:56]} 6. c3 {[%clk 0:02:56]}  Bg4 {[%clk 0:02:55]} 7. O-O {[%clk 0:02:55]}  e6 {[%clk 0:02:55]} 8. Bf4 {[%clk 0:02:54]}  Bd6 {[%clk 0:02:52]} 9. Bxd6 {[%clk 0:02:54]}  Qxd6 {[%clk 0:02:52]} 10. Nbd2 {[%clk 0:02:55]}  O-O {[%clk 0:02:50]} 11. h3 {[%clk 0:02:55]}  Bxf3 {[%clk 0:02:50]} 12. Qxf3 {[%clk 0:02:52]}  a6 {[%clk 0:02:47]} 13. Rfe1 {[%clk 0:02:46]}  b5 {[%clk 0:02:46]} 14. a3 {[%clk 0:02:44]}  Na5 {[%clk 0:02:44]} 15. b4 {[%clk 0:02:42]}  Nc4 {[%clk 0:02:31]} 16. Nxc4 {[%clk 0:02:38]}  bxc4 {[%clk 0:02:30]} 17. Bc2 {[%clk 0:02:37]}  a5 {[%clk 0:02:27]} 18. b5 {[%clk 0:02:24]}  a4 {[%clk 0:02:16]} 19. Reb1 {[%clk 0:02:23]}  Rfb8 {[%clk 0:02:14]} 20. Qd1 {[%clk 0:02:22]}  Ra5 {[%clk 0:02:07]} 21. Bxa4 {[%clk 0:02:09]}  Ne4 {[%clk 0:01:58]} 22. Qc2 {[%clk 0:01:47]}  Nxc3 {[%clk 0:01:53]} 23. Qxc3 {[%clk 0:01:47]}  Rxa4 {[%clk 0:01:53]} 24. Rb2 {[%clk 0:01:36]}  h6 {[%clk 0:01:40]} 25. Kf1 {[%clk 0:01:30]}  Qh2 {[%clk 0:01:24]} 26. Ke2 {[%clk 0:01:26]}  Qxg2 {[%clk 0:01:22]} 27. Qf3 {[%clk 0:01:19]}  Qxf3+ {[%clk 0:01:10]} 28. Kxf3 {[%clk 0:01:20]}  Rb6 {[%clk 0:01:10]} 29. Ke3 {[%clk 0:01:18]}  Kf8 {[%clk 0:01:09]} 30. Kd2 {[%clk 0:01:15]}  Ke7 {[%clk 0:00:44]} 31. Kc3 {[%clk 0:01:15]}  Kd6 {[%clk 0:00:41]} 32. Rb4 {[%clk 0:01:15]}  Ra5 {[%clk 0:00:41]} 33. a4 {[%clk 0:01:15]}  f6 {[%clk 0:00:40]} 34. f4 {[%clk 0:01:12]}  e5 {[%clk 0:00:36]} 35. fxe5+ {[%clk 0:01:11]}  fxe5 {[%clk 0:00:36]} 36. Rg1 {[%clk 0:01:02]}  g5 {[%clk 0:00:27]} 37. Rf1 {[%clk 0:01:02]}  e4 {[%clk 0:00:23]} 38. Rf6+ {[%clk 0:00:56]}  Kc7 {[%clk 0:00:23]} 39. Rf7+ {[%clk 0:00:52]}  Kc8 {[%clk 0:00:18]} 40. Rf5 {[%clk 0:00:48]}  Rd6 {[%clk 0:00:17]} 41. b6 {[%clk 0:00:38]}  Rd7 {[%clk 0:00:07]} 42. b7+ {[%clk 0:00:31]}  Rxb7 {[%clk 0:00:07]} 43. Rf8+ {[%clk 0:00:31]}  Kd7 {[%clk 0:00:07]} 44. Rxb7+ {[%clk 0:00:29]}  Kc6 {[%clk 0:00:07]} 45. Rb4 {[%clk 0:00:27]}  Kd6 {[%clk 0:00:07]} 46. Rf6+ {[%clk 0:00:27]}  Ke7 {[%clk 0:00:07]} 47. Rxh6 {[%clk 0:00:27]}  Ra8 {[%clk 0:00:03]} 48. Rb7+ {[%clk 0:00:24]} 1-0

[Event "November 21 Late 2023"]
[Site "https://www.chess.com"]
[Date "2023.11.21"]
[Round "9"]
[White "Rose, Felix"]
[Black "Buchenau, Frank"]
[Result "1-0"]
[Board "94"]
[TimeControl "180+1"]
[WhiteFideId "5105722"]
[BlackFideId "4604350"]
[WhiteElo "2039"]
[BlackElo "2157"]
[WhiteTeam "MEX"]
[BlackTeam "GER"]
[WhiteClock "0:01:41"]
[BlackClock "0:00:46"]

1. e4 {[%clk 0:03:00]}  e6 {[%clk 0:03:00]} 2. d4 {[%clk 0:03:00]}  d5 {[%clk 0:03:00]} 3. Nc3 {[%clk 0:03:00]}  Nf6 {[%clk 0:03:00]} 4. e5 {[%clk 0:03:00]}  Nfd7 {[%clk 0:03:00]} 5. f4 {[%clk 0:03:00]}  c5 {[%clk 0:03:00]} 6. Nf3 {[%clk 0:03:01]}  Nc6 {[%clk 0:03:01]} 7. Be3 {[%clk 0:03:01]}  a6 {[%clk 0:03:01]} 8. Qd2 {[%clk 0:03:01]}  b5 {[%clk 0:03:01]} 9. dxc5 {[%clk 0:03:02]}  Bxc5 {[%clk 0:03:00]} 10. Ne2 {[%clk 0:02:42]}  Qb6 {[%clk 0:02:53]} 11. Bxc5 {[%clk 0:02:41]}  Nxc5 {[%clk 0:02:51]} 12. Ned4 {[%clk 0:02:38]}  Bd7 {[%clk 0:02:45]} 13. O-O-O {[%clk 0:02:37]}  Ne4 {[%clk 0:02:40]} 14. Qe3 {[%clk 0:02:38]}  O-O {[%clk 0:02:33]} 15. Bd3 {[%clk 0:02:37]}  Nxd4 {[%clk 0:02:26]} 16. Nxd4 {[%clk 0:02:37]}  Bc6 {[%clk 0:02:11]} 17. Rhe1 {[%clk 0:02:33]}  Bb7 {[%clk 0:02:09]} 18. Kb1 {[%clk 0:02:28]}  b4 {[%clk 0:02:08]} 19. g4 {[%clk 0:02:24]}  a5 {[%clk 0:02:08]} 20. f5 {[%clk 0:02:24]}  exf5 {[%clk 0:02:01]} 21. gxf5 {[%clk 0:02:24]}  a4 {[%clk 0:01:50]} 22. f6 {[%clk 0:02:03]}  Nc3+ {[%clk 0:01:28]} 23. Ka1 {[%clk 0:01:56]}  Nxd1 {[%clk 0:00:58]} 24. Qg5 {[%clk 0:01:45]}  g6 {[%clk 0:00:46]} 25. Qh6 {[%clk 0:01:41]} 1-0

[Event "November 21 Late 2023"]
[Site "https://www.chess.com"]
[Date "2023.11.21"]
[Round "9"]
[White "Harish, Neeraj"]
[Black "Zakarian, David"]
[Result "1/2-1/2"]
[Board "95"]
[TimeControl "180+1"]
[WhiteFideId "30958130"]
[BlackFideId "13301276"]
[WhiteElo "1866"]
[BlackElo "2286"]
[WhiteTeam "USA"]
[BlackTeam "ARM"]
[WhiteClock "0:00:40"]
[BlackClock "0:00:18"]

1. e4 {[%clk 0:03:00]}  Nc6 {[%clk 0:02:58]} 2. Nf3 {[%clk 0:02:56]}  d6 {[%clk 0:02:57]} 3. d4 {[%clk 0:02:56]}  Nf6 {[%clk 0:02:58]} 4. Nc3 {[%clk 0:02:55]}  Bg4 {[%clk 0:02:58]} 5. Be2 {[%clk 0:02:55]}  e6 {[%clk 0:02:59]} 6. h3 {[%clk 0:02:54]}  Bh5 {[%clk 0:02:59]} 7. Be3 {[%clk 0:02:54]}  d5 {[%clk 0:02:58]} 8. e5 {[%clk 0:02:53]}  Nd7 {[%clk 0:02:59]} 9. Qd2 {[%clk 0:02:54]}  Be7 {[%clk 0:02:57]} 10. O-O-O {[%clk 0:02:51]}  Bg6 {[%clk 0:02:54]} 11. Ne1 {[%clk 0:02:40]}  a6 {[%clk 0:02:51]} 12. f4 {[%clk 0:02:40]}  h5 {[%clk 0:02:41]} 13. g4 {[%clk 0:02:39]}  hxg4 {[%clk 0:02:40]} 14. Bxg4 {[%clk 0:02:38]}  Bb4 {[%clk 0:02:28]} 15. Rf1 {[%clk 0:02:37]}  Ne7 {[%clk 0:02:20]} 16. a3 {[%clk 0:02:36]}  Bxc3 {[%clk 0:02:18]} 17. Qxc3 {[%clk 0:02:36]}  Nf5 {[%clk 0:02:18]} 18. Bg1 {[%clk 0:02:34]}  Nb6 {[%clk 0:02:08]} 19. Nd3 {[%clk 0:02:19]}  Na4 {[%clk 0:01:56]} 20. Qb3 {[%clk 0:02:16]}  b5 {[%clk 0:01:54]} 21. Nc5 {[%clk 0:02:15]}  Nxc5 {[%clk 0:01:49]} 22. dxc5 {[%clk 0:02:16]}  c6 {[%clk 0:01:48]} 23. Bf2 {[%clk 0:02:10]}  Qa5 {[%clk 0:01:35]} 24. Be1 {[%clk 0:02:10]}  Qc7 {[%clk 0:01:34]} 25. Qc3 {[%clk 0:02:03]}  a5 {[%clk 0:01:27]} 26. Rg1 {[%clk 0:01:59]}  Ke7 {[%clk 0:01:11]} 27. Bxf5 {[%clk 0:01:48]}  Bxf5 {[%clk 0:01:10]} 28. Rxg7 {[%clk 0:01:48]}  Rxh3 {[%clk 0:01:09]} 29. Qd2 {[%clk 0:01:48]}  b4 {[%clk 0:01:02]} 30. Qg2 {[%clk 0:01:42]}  Rah8 {[%clk 0:00:40]} 31. Qg5+ {[%clk 0:01:42]}  Kf8 {[%clk 0:00:40]} 32. axb4 {[%clk 0:01:20]}  axb4 {[%clk 0:00:41]} 33. Bxb4 {[%clk 0:01:21]}  R3h5 {[%clk 0:00:27]} 34. Rg8+ {[%clk 0:01:13]}  Rxg8 {[%clk 0:00:25]} 35. Qxh5 {[%clk 0:01:14]}  Qa7 {[%clk 0:00:20]} 36. Qh6+ {[%clk 0:01:13]}  Ke8 {[%clk 0:00:18]} 37. Ba3 {[%clk 0:01:10]}  Qa4 {[%clk 0:00:18]} 38. Qh2 {[%clk 0:01:03]}  Qc4 {[%clk 0:00:18]} 39. Qd2 {[%clk 0:01:02]}  Qa2 {[%clk 0:00:18]} 40. Qb4 {[%clk 0:00:58]}  Rg2 {[%clk 0:00:17]} 41. Qb8+ {[%clk 0:00:48]}  Ke7 {[%clk 0:00:18]} 42. Qd6+ {[%clk 0:00:47]}  Ke8 {[%clk 0:00:18]} 43. Qb8+ {[%clk 0:00:46]}  Ke7 {[%clk 0:00:17]} 44. Qd6+ {[%clk 0:00:47]}  Ke8 {[%clk 0:00:18]} 45. Qb8+ {[%clk 0:00:40]} 1/2-1/2

[Event "November 21 Late 2023"]
[Site "https://www.chess.com"]
[Date "2023.11.21"]
[Round "9"]
[White "Su, Dion"]
[Black "Vila Dupla, Aurelio"]
[Result "1-0"]
[Board "96"]
[TimeControl "180+1"]
[WhiteFideId "2029731"]
[BlackFideId "2203383"]
[WhiteElo "2380"]
[BlackElo "2009"]
[WhiteTeam "USA"]
[BlackTeam "ESP"]
[WhiteClock "0:01:34"]
[BlackClock "0:00:12"]

1. e4 {[%clk 0:03:00]}  c5 {[%clk 0:02:58]} 2. Nf3 {[%clk 0:03:00]}  d6 {[%clk 0:02:59]} 3. d4 {[%clk 0:02:59]}  cxd4 {[%clk 0:02:58]} 4. Nxd4 {[%clk 0:03:00]}  Nf6 {[%clk 0:02:58]} 5. Nc3 {[%clk 0:03:00]}  g6 {[%clk 0:02:58]} 6. Be3 {[%clk 0:03:00]}  Bg7 {[%clk 0:02:58]} 7. f3 {[%clk 0:03:01]}  Nc6 {[%clk 0:02:58]} 8. Qd2 {[%clk 0:03:02]}  O-O {[%clk 0:02:57]} 9. Bc4 {[%clk 0:03:02]}  Bd7 {[%clk 0:02:56]} 10. O-O-O {[%clk 0:03:01]}  Qa5 {[%clk 0:02:56]} 11. Nb3 {[%clk 0:02:58]}  Qc7 {[%clk 0:02:55]} 12. h4 {[%clk 0:02:51]}  Ne5 {[%clk 0:02:38]} 13. Be2 {[%clk 0:02:46]}  h5 {[%clk 0:02:37]} 14. Kb1 {[%clk 0:02:43]}  Rfc8 {[%clk 0:02:36]} 15. f4 {[%clk 0:02:35]}  Neg4 {[%clk 0:02:15]} 16. Bd4 {[%clk 0:02:24]}  Be6 {[%clk 0:01:37]} 17. f5 {[%clk 0:02:17]}  Bxb3 {[%clk 0:01:36]} 18. axb3 {[%clk 0:02:14]}  Nxe4 {[%clk 0:01:05]} 19. Nxe4 {[%clk 0:02:08]}  Bxd4 {[%clk 0:01:05]} 20. fxg6 {[%clk 0:02:04]}  fxg6 {[%clk 0:00:51]} 21. Bc4+ {[%clk 0:02:03]}  Qxc4 {[%clk 0:00:23]} 22. bxc4 {[%clk 0:02:00]}  Rxc4 {[%clk 0:00:24]} 23. c3 {[%clk 0:01:44]}  d5 {[%clk 0:00:12]} 24. Ng5 {[%clk 0:01:34]} 1-0

[Event "November 21 Late 2023"]
[Site "https://www.chess.com"]
[Date "2023.11.21"]
[Round "9"]
[White "Tsiolakidis, Anastasios"]
[Black "SergioMoralesG"]
[Result "0-1"]
[Board "97"]
[TimeControl "180+1"]
[WhiteFideId "4201477"]
[WhiteElo "2275"]
[BlackElo "2343"]
[WhiteTeam "GRE"]
[WhiteClock "0:02:19"]
[BlackClock "0:00:18"]

1. e4 {[%clk 0:03:00]}  c5 {[%clk 0:01:42]} 2. Nf3 {[%clk 0:03:01]}  e6 {[%clk 0:01:42]} 3. d4 {[%clk 0:03:02]}  cxd4 {[%clk 0:01:43]} 4. Nxd4 {[%clk 0:03:03]}  Nc6 {[%clk 0:01:43]} 5. Nc3 {[%clk 0:03:03]}  Qc7 {[%clk 0:01:43]} 6. Bg5 {[%clk 0:03:01]}  a6 {[%clk 0:01:38]} 7. Qd2 {[%clk 0:02:58]}  Bb4 {[%clk 0:01:32]} 8. Bf4 {[%clk 0:02:51]}  e5 {[%clk 0:01:27]} 9. Nxc6 {[%clk 0:02:48]}  bxc6 {[%clk 0:01:25]} 10. Bg3 {[%clk 0:02:46]}  Nf6 {[%clk 0:01:23]} 11. Bd3 {[%clk 0:02:45]}  O-O {[%clk 0:01:15]} 12. a3 {[%clk 0:02:44]}  Bc5 {[%clk 0:01:11]} 13. O-O-O {[%clk 0:02:42]}  Rb8 {[%clk 0:00:49]} 14. Bc4 {[%clk 0:02:39]}  d6 {[%clk 0:00:45]} 15. f4 {[%clk 0:02:37]}  Ng4 {[%clk 0:00:30]} 16. Rhe1 {[%clk 0:02:32]}  Qa5 {[%clk 0:00:23]} 17. Nb1 {[%clk 0:02:31]}  Qb6 {[%clk 0:00:19]} 18. fxe5 {[%clk 0:02:19]}  Qxb2# {[%clk 0:00:18]} 0-1

[Event "November 21 Late 2023"]
[Site "https://www.chess.com"]
[Date "2023.11.21"]
[Round "9"]
[White "Ivanov, Aleksandr"]
[Black "ExchangeAB"]
[Result "0-1"]
[Board "99"]
[TimeControl "180+1"]
[WhiteFideId "2092980"]
[WhiteElo "2047"]
[BlackElo "2458"]
[WhiteTeam "USA"]
[WhiteClock "0:00:02"]
[BlackClock "0:00:10"]

1. d4 {[%clk 0:02:56]}  d5 {[%clk 0:02:58]} 2. c4 {[%clk 0:02:55]}  c6 {[%clk 0:02:59]} 3. cxd5 {[%clk 0:02:54]}  cxd5 {[%clk 0:02:59]} 4. Bf4 {[%clk 0:02:53]}  Nf6 {[%clk 0:02:59]} 5. e3 {[%clk 0:02:53]}  Nc6 {[%clk 0:02:59]} 6. Nc3 {[%clk 0:02:53]}  Bf5 {[%clk 0:02:58]} 7. Qb3 {[%clk 0:02:50]}  Na5 {[%clk 0:02:55]} 8. Qa4+ {[%clk 0:02:46]}  Bd7 {[%clk 0:02:54]} 9. Qc2 {[%clk 0:02:45]}  Rc8 {[%clk 0:02:53]} 10. Bd3 {[%clk 0:02:38]}  Nc4 {[%clk 0:02:51]} 11. Nf3 {[%clk 0:02:27]}  e6 {[%clk 0:02:51]} 12. O-O {[%clk 0:02:26]}  b5 {[%clk 0:02:51]} 13. Qe2 {[%clk 0:02:07]}  a6 {[%clk 0:02:44]} 14. Rfc1 {[%clk 0:02:06]}  Be7 {[%clk 0:02:44]} 15. h3 {[%clk 0:02:06]}  O-O {[%clk 0:02:44]} 16. a4 {[%clk 0:02:00]}  b4 {[%clk 0:02:37]} 17. Nb1 {[%clk 0:01:51]}  Qa5 {[%clk 0:01:56]} 18. b3 {[%clk 0:01:40]}  Nd6 {[%clk 0:01:41]} 19. Nbd2 {[%clk 0:01:34]}  Nde4 {[%clk 0:01:30]} 20. Bxa6 {[%clk 0:01:25]}  Nc3 {[%clk 0:01:26]} 21. Qf1 {[%clk 0:01:24]}  Ra8 {[%clk 0:01:21]} 22. Bd3 {[%clk 0:01:20]}  Rfc8 {[%clk 0:01:16]} 23. Ne5 {[%clk 0:01:18]}  Be8 {[%clk 0:01:14]} 24. Bc2 {[%clk 0:01:05]}  Nd7 {[%clk 0:01:08]} 25. Nd3 {[%clk 0:01:02]}  f6 {[%clk 0:01:01]} 26. Bg3 {[%clk 0:00:58]}  Bg6 {[%clk 0:00:57]} 27. Nb1 {[%clk 0:00:48]}  Rc6 {[%clk 0:00:42]} 28. Nf4 {[%clk 0:00:29]}  Bxc2 {[%clk 0:00:39]} 29. Rxc2 {[%clk 0:00:29]}  Rac8 {[%clk 0:00:36]} 30. Nxc3 {[%clk 0:00:23]}  bxc3 {[%clk 0:00:34]} 31. Nd3 {[%clk 0:00:19]}  Kf7 {[%clk 0:00:18]} 32. Qb1 {[%clk 0:00:18]}  Bb4 {[%clk 0:00:18]} 33. Qd1 {[%clk 0:00:17]}  g6 {[%clk 0:00:16]} 34. f3 {[%clk 0:00:17]}  Nb6 {[%clk 0:00:12]} 35. Be1 {[%clk 0:00:17]}  Nd7 {[%clk 0:00:11]} 36. Qb1 {[%clk 0:00:17]}  e5 {[%clk 0:00:11]} 37. Qa2 {[%clk 0:00:14]}  e4 {[%clk 0:00:10]} 38. fxe4 {[%clk 0:00:13]}  dxe4 {[%clk 0:00:10]} 39. Nxb4 {[%clk 0:00:13]}  Qxb4 {[%clk 0:00:11]} 40. Rac1 {[%clk 0:00:14]}  Nb6 {[%clk 0:00:11]} 41. Qa1 {[%clk 0:00:13]}  Nd5 {[%clk 0:00:11]} 42. Kf2 {[%clk 0:00:13]}  Qxb3 {[%clk 0:00:10]} 43. a5 {[%clk 0:00:12]}  Qb5 {[%clk 0:00:10]} 44. a6 {[%clk 0:00:12]}  Rxa6 {[%clk 0:00:10]} 45. Qb1 {[%clk 0:00:12]}  Qxb1 {[%clk 0:00:09]} 46. Rxb1 {[%clk 0:00:12]}  Rac6 {[%clk 0:00:09]} 47. Rb7+ {[%clk 0:00:12]}  R8c7 {[%clk 0:00:09]} 48. Rb8 {[%clk 0:00:12]}  Rc8 {[%clk 0:00:08]} 49. Rb7+ {[%clk 0:00:12]}  R8c7 {[%clk 0:00:09]} 50. Rb5 {[%clk 0:00:13]}  Ke6 {[%clk 0:00:08]} 51. g3 {[%clk 0:00:11]}  f5 {[%clk 0:00:08]} 52. h4 {[%clk 0:00:11]}  h6 {[%clk 0:00:08]} 53. Rb8 {[%clk 0:00:10]}  g5 {[%clk 0:00:08]} 54. Re8+ {[%clk 0:00:10]}  Re7 {[%clk 0:00:08]} 55. Rxe7+ {[%clk 0:00:09]}  Kxe7 {[%clk 0:00:09]} 56. hxg5 {[%clk 0:00:08]}  hxg5 {[%clk 0:00:10]} 57. g4 {[%clk 0:00:08]}  f4 {[%clk 0:00:10]} 58. exf4 {[%clk 0:00:08]}  gxf4 {[%clk 0:00:11]} 59. Ke2 {[%clk 0:00:08]}  Kf6 {[%clk 0:00:11]} 60. Bf2 {[%clk 0:00:08]}  Kg5 {[%clk 0:00:11]} 61. Rc1 {[%clk 0:00:07]}  f3+ {[%clk 0:00:10]} 62. Kf1 {[%clk 0:00:06]}  Kxg4 {[%clk 0:00:10]} 63. Rc2 {[%clk 0:00:05]}  e3 {[%clk 0:00:10]} 64. Be1 {[%clk 0:00:06]}  Kf4 {[%clk 0:00:09]} 65. Rh2 {[%clk 0:00:05]}  Ke4 {[%clk 0:00:09]} 66. Rh4+ {[%clk 0:00:05]}  Kd3 {[%clk 0:00:10]} 67. Bg3 {[%clk 0:00:02]}  c2 {[%clk 0:00:10]} 0-1

[Event "November 21 Late 2023"]
[Site "https://www.chess.com"]
[Date "2023.11.21"]
[Round "9"]
[White "Pein, Jonathan"]
[Black "Desideri, Ricardo Maruchi"]
[Result "1-0"]
[Board "100"]
[TimeControl "180+1"]
[WhiteFideId "417092"]
[BlackFideId "2110440"]
[WhiteElo "2192"]
[BlackElo "1945"]
[WhiteTeam "ENG"]
[BlackTeam "BRA"]
[WhiteClock "0:00:04"]
[BlackClock "0:00:00"]

1. Nf3 {[%clk 0:03:00]}  c5 {[%clk 0:02:56]} 2. e3 {[%clk 0:02:59]}  Nf6 {[%clk 0:02:54]} 3. d4 {[%clk 0:02:59]}  b6 {[%clk 0:02:53]} 4. b3 {[%clk 0:02:58]}  e6 {[%clk 0:02:53]} 5. Bb2 {[%clk 0:02:58]}  Bb7 {[%clk 0:02:50]} 6. Nbd2 {[%clk 0:02:58]}  Be7 {[%clk 0:02:49]} 7. Bd3 {[%clk 0:02:58]}  O-O {[%clk 0:02:48]} 8. O-O {[%clk 0:02:58]}  Na6 {[%clk 0:02:48]} 9. a3 {[%clk 0:02:58]}  Nc7 {[%clk 0:02:48]} 10. Qe2 {[%clk 0:02:58]}  a6 {[%clk 0:02:45]} 11. Rac1 {[%clk 0:02:57]}  b5 {[%clk 0:02:44]} 12. c4 {[%clk 0:02:55]}  bxc4 {[%clk 0:02:39]} 13. Nxc4 {[%clk 0:02:52]}  cxd4 {[%clk 0:02:22]} 14. Bxd4 {[%clk 0:02:51]}  d5 {[%clk 0:02:19]} 15. Na5 {[%clk 0:02:50]}  Qc8 {[%clk 0:02:11]} 16. Bb6 {[%clk 0:02:37]}  Nfe8 {[%clk 0:02:06]} 17. Qc2 {[%clk 0:02:32]}  Bd6 {[%clk 0:02:01]} 18. Bxh7+ {[%clk 0:02:28]}  Kh8 {[%clk 0:02:00]} 19. Bd3 {[%clk 0:02:22]}  Qb8 {[%clk 0:01:57]} 20. Nxb7 {[%clk 0:02:02]}  Qxb7 {[%clk 0:01:56]} 21. Bd4 {[%clk 0:02:02]}  Nb5 {[%clk 0:01:54]} 22. a4 {[%clk 0:01:46]}  Nxd4 {[%clk 0:01:52]} 23. Nxd4 {[%clk 0:01:47]}  Ba3 {[%clk 0:01:29]} 24. Qc6 {[%clk 0:01:40]}  Qa7 {[%clk 0:01:00]} 25. Rc2 {[%clk 0:01:33]}  Nd6 {[%clk 0:00:57]} 26. a5 {[%clk 0:01:21]}  Rfc8 {[%clk 0:00:55]} 27. Qa4 {[%clk 0:01:20]}  Rxc2 {[%clk 0:00:51]} 28. Nxc2 {[%clk 0:01:19]}  Bb2 {[%clk 0:00:51]} 29. Qh4+ {[%clk 0:01:01]}  Kg8 {[%clk 0:00:51]} 30. Nd4 {[%clk 0:00:59]}  g6 {[%clk 0:00:35]} 31. Qf6 {[%clk 0:00:42]}  Ne8 {[%clk 0:00:31]} 32. Qh4 {[%clk 0:00:36]}  Ng7 {[%clk 0:00:29]} 33. h3 {[%clk 0:00:32]}  Qc7 {[%clk 0:00:20]} 34. Nf3 {[%clk 0:00:29]}  e5 {[%clk 0:00:17]} 35. Ng5 {[%clk 0:00:27]}  Nh5 {[%clk 0:00:15]} 36. Be2 {[%clk 0:00:26]}  Nf6 {[%clk 0:00:13]} 37. Ne6 {[%clk 0:00:25]}  fxe6 {[%clk 0:00:12]} 38. Qxf6 {[%clk 0:00:25]}  Qf7 {[%clk 0:00:11]} 39. Qg5 {[%clk 0:00:25]}  e4 {[%clk 0:00:10]} 40. Bh5 {[%clk 0:00:23]}  Kg7 {[%clk 0:00:09]} 41. Bg4 {[%clk 0:00:20]}  Qf6 {[%clk 0:00:08]} 42. Qxf6+ {[%clk 0:00:19]}  Kxf6 {[%clk 0:00:09]} 43. Rb1 {[%clk 0:00:19]}  Bc3 {[%clk 0:00:08]} 44. Kf1 {[%clk 0:00:19]}  Bxa5 {[%clk 0:00:08]} 45. Ke2 {[%clk 0:00:19]}  Bb4 {[%clk 0:00:08]} 46. f3 {[%clk 0:00:19]}  Rc8 {[%clk 0:00:08]} 47. Rb2 {[%clk 0:00:18]}  a5 {[%clk 0:00:07]} 48. fxe4 {[%clk 0:00:18]}  dxe4 {[%clk 0:00:07]} 49. h4 {[%clk 0:00:18]}  Rc3 {[%clk 0:00:07]} 50. g3 {[%clk 0:00:11]}  Bc5 {[%clk 0:00:07]} 51. Kf1 {[%clk 0:00:06]}  Rxe3 {[%clk 0:00:07]} 52. Kg2 {[%clk 0:00:07]}  Rc3 {[%clk 0:00:06]} 53. Be2 {[%clk 0:00:07]}  e3 {[%clk 0:00:05]} 54. Bc4 {[%clk 0:00:07]}  e5 {[%clk 0:00:05]} 55. Kf3 {[%clk 0:00:08]}  Bd4 {[%clk 0:00:05]} 56. Ke4 {[%clk 0:00:07]}  Rc1 {[%clk 0:00:04]} 57. Re2 {[%clk 0:00:06]}  Rd1 {[%clk 0:00:04]} 58. g4 {[%clk 0:00:07]}  Rd2 {[%clk 0:00:04]} 59. g5+ {[%clk 0:00:07]}  Ke7 {[%clk 0:00:03]} 60. Re1 {[%clk 0:00:05]}  Rf2 {[%clk 0:00:02]} 61. Kd3 {[%clk 0:00:05]}  Kd6 {[%clk 0:00:01]} 62. Bg8 {[%clk 0:00:03]}  Kc5 {[%clk 0:00:01]} 63. Bh7 {[%clk 0:00:03]}  Rd2+ {[%clk 0:00:00]} 64. Ke4 {[%clk 0:00:04]} 1-0

[Event "November 21 Late 2023"]
[Site "https://www.chess.com"]
[Date "2023.11.21"]
[Round "9"]
[White "Awoki, Daniel Teidi"]
[Black "DAVIDHDZSTS"]
[Result "1-0"]
[Board "102"]
[TimeControl "180+1"]
[WhiteFideId "2100827"]
[WhiteElo "2077"]
[BlackElo "1863"]
[WhiteTeam "BRA"]
[WhiteClock "0:01:57"]
[BlackClock "0:00:58"]

1. e4 {[%clk 0:03:00]}  c5 {[%clk 0:02:59]} 2. Nf3 {[%clk 0:03:00]}  e6 {[%clk 0:03:00]} 3. d4 {[%clk 0:03:00]}  cxd4 {[%clk 0:03:01]} 4. Nxd4 {[%clk 0:03:01]}  a6 {[%clk 0:03:01]} 5. Bd3 {[%clk 0:03:01]}  Nc6 {[%clk 0:02:59]} 6. Nxc6 {[%clk 0:03:00]}  bxc6 {[%clk 0:03:00]} 7. O-O {[%clk 0:03:01]}  d5 {[%clk 0:03:00]} 8. Qe2 {[%clk 0:02:59]}  Nf6 {[%clk 0:02:50]} 9. c4 {[%clk 0:02:59]}  d4 {[%clk 0:02:49]} 10. e5 {[%clk 0:02:58]}  Nd7 {[%clk 0:02:49]} 11. Qe4 {[%clk 0:02:56]}  Qc7 {[%clk 0:02:31]} 12. Re1 {[%clk 0:02:52]}  Bc5 {[%clk 0:02:25]} 13. a3 {[%clk 0:02:48]}  a5 {[%clk 0:02:24]} 14. Nd2 {[%clk 0:02:44]}  Bb7 {[%clk 0:02:19]} 15. Nb3 {[%clk 0:02:38]}  Qb6 {[%clk 0:02:13]} 16. Nd2 {[%clk 0:02:34]}  Be7 {[%clk 0:02:08]} 17. Qg4 {[%clk 0:02:31]}  c5 {[%clk 0:01:52]} 18. f4 {[%clk 0:02:29]}  h5 {[%clk 0:01:35]} 19. Qxg7 {[%clk 0:02:28]}  O-O-O {[%clk 0:01:35]} 20. Be4 {[%clk 0:02:29]}  Rdg8 {[%clk 0:01:32]} 21. Qxf7 {[%clk 0:02:29]}  Bxe4 {[%clk 0:01:31]} 22. Nxe4 {[%clk 0:02:30]}  Qd8 {[%clk 0:01:27]} 23. Qxe6 {[%clk 0:02:28]}  h4 {[%clk 0:01:22]} 24. b4 {[%clk 0:02:23]}  h3 {[%clk 0:01:21]} 25. g3 {[%clk 0:02:22]}  cxb4 {[%clk 0:01:21]} 26. axb4 {[%clk 0:02:21]}  Bxb4 {[%clk 0:01:22]} 27. Qa6+ {[%clk 0:02:09]}  Kc7 {[%clk 0:01:21]} 28. Bd2 {[%clk 0:02:04]}  Nc5 {[%clk 0:01:02]} 29. Nxc5 {[%clk 0:02:01]}  Bxc5 {[%clk 0:01:01]} 30. Bxa5+ {[%clk 0:01:59]}  Kd7 {[%clk 0:01:01]} 31. e6+ {[%clk 0:01:57]}  Ke7 {[%clk 0:01:00]} 32. Qb7+ {[%clk 0:01:57]}  Kf6 {[%clk 0:00:58]} 33. Qf7# {[%clk 0:01:57]} 1-0

[Event "November 21 Late 2023"]
[Site "https://www.chess.com"]
[Date "2023.11.21"]
[Round "9"]
[White "Broca Jimenez, Fernando"]
[Black "Sarkar, Justin"]
[Result "0-1"]
[Board "105"]
[TimeControl "180+1"]
[WhiteFideId "5104742"]
[BlackFideId "2010011"]
[WhiteElo "2062"]
[BlackElo "2138"]
[WhiteTeam "MEX"]
[BlackTeam "USA"]
[WhiteClock "0:00:00"]
[BlackClock "0:00:35"]

1. e4 {[%clk 0:02:59]}  e5 {[%clk 0:02:48]} 2. Nf3 {[%clk 0:02:58]}  Nc6 {[%clk 0:02:46]} 3. Bb5 {[%clk 0:02:57]}  a6 {[%clk 0:02:45]} 4. Ba4 {[%clk 0:02:57]}  Nf6 {[%clk 0:02:44]} 5. O-O {[%clk 0:02:57]}  Nxe4 {[%clk 0:02:41]} 6. d4 {[%clk 0:02:55]}  b5 {[%clk 0:02:39]} 7. Bb3 {[%clk 0:02:55]}  d5 {[%clk 0:02:39]} 8. dxe5 {[%clk 0:02:54]}  Be6 {[%clk 0:02:39]} 9. Nbd2 {[%clk 0:02:49]}  Nc5 {[%clk 0:02:24]} 10. c3 {[%clk 0:02:48]}  Bg4 {[%clk 0:02:23]} 11. Bc2 {[%clk 0:02:46]}  Qd7 {[%clk 0:02:23]} 12. Re1 {[%clk 0:02:36]}  Be7 {[%clk 0:02:12]} 13. h3 {[%clk 0:02:27]}  Bf5 {[%clk 0:02:00]} 14. Nd4 {[%clk 0:01:29]}  Nxd4 {[%clk 0:01:31]} 15. cxd4 {[%clk 0:01:30]}  Nd3 {[%clk 0:01:30]} 16. Re3 {[%clk 0:01:05]}  Nb4 {[%clk 0:01:23]} 17. Bxf5 {[%clk 0:00:57]}  Qxf5 {[%clk 0:01:23]} 18. Rf3 {[%clk 0:00:24]}  Qc2 {[%clk 0:01:21]} 19. Qe2 {[%clk 0:00:11]}  O-O {[%clk 0:00:57]} 20. a3 {[%clk 0:00:10]}  Nc6 {[%clk 0:00:57]} 21. Qd3 {[%clk 0:00:08]}  Qd1+ {[%clk 0:00:46]} 22. Kh2 {[%clk 0:00:00]}  f6 {[%clk 0:00:35]} 0-1